fUST/lending_fUST_20250117
["ID","MTS","AMOUNT","RATE_DAILY","PERIOD"]
[349326428,1737124263914,-500.0,0.00022602,3]
[349326429,1737124263923,-500.0,0.00022602,3]
[349326430,1737124263934,-334.7736983,0.00022602,3]
[349326431,1737124263943,-500.0,0.00022602,3]
[349326432,1737124263953,-532.28991709,0.00022602,3]
[349326433,1737124263964,-500.0,0.00022602,3]
[349326434,1737124263974,-1123.5,0.00022602,3]
[349326435,1737124263985,-500.0,0.00022602,3]
[349326436,1737124263994,-381.52868599,0.00022602,3]
[349326437,1737124264006,-500.0,0.00022602,3]
[349326438,1737124264016,-508.46050882,0.00022602,3]
[349326439,1737124264026,-500.0,0.00022602,3]
[349326440,1737124264036,-510.51,0.00022602,3]
[349326441,1737124264046,-500.0,0.00022602,3]
[349326442,1737124264057,-500.0,0.00022602,3]
[349326443,1737124264067,-595.12,0.00022602,3]
[349326444,1737124264083,-500.0,0.00022602,3]
[349326445,1737124264093,-521.06,0.00022602,3]
[349326446,1737124264103,-500.0,0.00022602,3]
[349326447,1737124264114,-500.0,0.00022602,3]
[349326448,1737124264124,-500.0,0.00022602,3]
[349326449,1737124264134,-500.0,0.00022602,3]
[349326450,1737124264144,-186.26375421,0.00022602,3]
[349326451,1737124264154,-500.0,0.00022602,3]
[349326452,1737124264163,-500.0,0.00022602,3]
[349326453,1737124264173,-500.0,0.00022602,3]
[349326454,1737124264184,-500.0,0.00022602,3]
[349326455,1737124264195,-500.0,0.00022602,3]
[349326456,1737124264205,-500.0,0.00022602,3]
[349326457,1737124264215,-639.58,0.00022602,3]
[349326458,1737124264226,-500.0,0.00022602,3]
[349326459,1737124264237,-500.0,0.00022602,3]
[349326460,1737124264247,-500.0,0.00022602,3]
[349326461,1737124264257,-500.0,0.00022602,3]
[349326462,1737124264267,-500.0,0.00022602,3]
[349326463,1737124264278,-500.0,0.00022602,3]
[349326464,1737124264288,-1722.86,0.00022602,3]
[349326465,1737124264297,-500.0,0.00022602,3]
[349326466,1737124264306,-629.57,0.00022602,3]
[349326467,1737124264316,-500.0,0.00022602,3]
[349326468,1737124264332,-951.9,0.00022602,3]
[349326469,1737124264342,-500.0,0.00022602,3]
[349326470,1737124264352,-500.0,0.00022602,3]
[349326471,1737124264362,-524.50377402,0.00022602,3]
[349326472,1737124264371,-500.0,0.00022602,3]
[349326473,1737124264382,-500.0,0.00022602,3]
[349326474,1737124264392,-217.17143254,0.00022602,3]
[349326475,1737124264402,-1578.16,0.00022602,3]
[349326476,1737124264412,-500.0,0.00022602,3]
[349326477,1737124264422,-309.86,0.00022602,3]
[349326478,1737124264432,-612.26,0.00022602,3]
[349326479,1737124264441,-500.0,0.00022602,2]
[349326480,1737124264451,-500.0,0.00022602,3]
[349326481,1737124264558,-500.0,0.00022602,3]
[349326482,1737124264568,-2485.7,0.00022602,3]
[349326483,1737124264584,-500.0,0.00022602,3]
[349326484,1737124264595,-557.75,0.00022602,3]
[349326485,1737124264604,-500.0,0.00022602,3]
[349326486,1737124264614,-1838.74,0.00022602,3]
[349326487,1737124264624,-500.0,0.00022602,3]
[349326488,1737124264634,-817.28,0.00022602,3]
[349326489,1737124264644,-946.55,0.00022602,3]
[349326490,1737124264654,-500.0,0.00022602,3]
[349326491,1737124264664,-1102.74,0.00022602,3]
[349326492,1737124264674,-500.0,0.00022602,3]
[349326493,1737124264683,-500.0,0.00022602,3]
[349326494,1737124264693,-500.0,0.00022602,3]
[349326495,1737124264702,-500.0,0.00022602,3]
[349326496,1737124264712,-3387.11,0.00022602,3]
[349326497,1737124264721,-614.7,0.00022602,3]
[349326498,1737124264731,-11000.29,0.00022602,3]
[349326499,1737124264740,-420.0,0.00022606,2]
[349326500,1737124264750,-160.0,0.00022607,3]
[349326501,1737124264759,-500.38145999,0.00022641,2]
[349326502,1737124264769,-500.0,0.00022641,2]
[349326503,1737124264778,-500.0,0.00022641,2]
[349326504,1737124264788,-8237.2620859,0.00022659,3]
[349326505,1737124264798,-195.97462127,0.00022674,2]
[349326506,1737124264808,-8237.2620859,0.00022728,3]
[349326507,1737124264818,-205.67955076,0.00022739,2]
[349326508,1737124264835,-500.0,0.00022739,2]
[349326509,1737124264847,-150.17,0.00022739,2]
[349326510,1737124264857,-1571.65,0.00022739,3]
[349326511,1737124264867,-500.0,0.00022739,3]
[349326512,1737124264877,-3116.63,0.00022739,3]
[349326513,1737124264887,-4787.51,0.00022739,3]
[349326514,1737124264897,-500.0,0.00022739,3]
[349326515,1737124264907,-565.46,0.00022739,3]
[349326516,1737124264916,-186.71,0.00022739,3]
[349326517,1737124264926,-500.0,0.00022739,3]
[349326518,1737124264936,-500.0,0.00022739,3]
[349326519,1737124264945,-500.0,0.00022739,3]
[349326520,1737124264955,-505.26713758,0.00022739,3]
[349326521,1737124264965,-500.0,0.00022739,3]
[349326522,1737124264974,-500.0,0.00022739,3]
[349326523,1737124264983,-500.0,0.00022739,3]
[349326524,1737124264993,-500.0,0.00022739,3]
[349326525,1737124265002,-417.81106543,0.00022739,3]
[349326526,1737124265011,-500.0,0.00022739,3]
[349326527,1737124265020,-500.0,0.00022739,3]
[349326528,1737124265030,-500.0,0.00022739,3]
[349326529,1737124265040,-500.0,0.00022739,3]
[349326530,1737124265050,-500.0,0.00022739,3]
[349326531,1737124265059,-500.0,0.00022739,3]
[349326532,1737124265069,-500.0,0.00022739,3]
[349326533,1737124265082,-500.0,0.00022739,3]
[349326534,1737124265091,-500.0,0.00022739,3]
[349326535,1737124265100,-500.0,0.00022739,3]
[349326536,1737124265110,-500.0,0.00022739,3]
[349326537,1737124265120,-500.0,0.00022739,3]
[349326538,1737124265129,-334.9403688,0.00022739,3]
[349326539,1737124265138,-500.0,0.00022739,3]
[349326540,1737124265147,-500.0,0.00022739,3]
[349326541,1737124265157,-500.0,0.00022739,3]
[349326542,1737124265167,-500.0,0.00022739,3]
[349326543,1737124265176,-583.3,0.00022739,3]
[349326544,1737124265186,-500.0,0.00022739,3]
[349326545,1737124265195,-500.0,0.00022739,3]
[349326546,1737124265205,-572.07068454,0.00022739,3]
[349326547,1737124265214,-500.0,0.00022739,3]
[349326548,1737124265223,-500.0,0.00022739,3]
[349326549,1737124265233,-1123.5,0.00022739,3]
[349326550,1737124265242,-500.0,0.00022739,3]
[349326551,1737124265252,-500.0,0.00022739,3]
[349326552,1737124265261,-510.51,0.00022739,3]
[349326553,1737124265271,-500.0,0.00022739,3]
[349326554,1737124265282,-500.0,0.00022739,3]
[349326555,1737124265291,-500.0,0.00022739,3]
[349326556,1737124265301,-500.0,0.00022739,3]
[349326557,1737124265311,-500.0,0.00022739,3]
[349326558,1737124265325,-500.0,0.00022739,3]
[349326559,1737124265335,-500.0,0.00022739,3]
[349326560,1737124265344,-392.37917441,0.00022739,3]
[349326561,1737124265354,-500.0,0.00022739,3]
[349326562,1737124265364,-500.0,0.00022739,3]
[349326563,1737124265373,-500.0,0.00022739,3]
[349326564,1737124265382,-500.0,0.00022739,3]
[349326565,1737124265391,-500.0,0.00022739,3]
[349326566,1737124265400,-500.0,0.00022739,3]
[349326567,1737124265410,-1722.86,0.00022739,3]
[349326568,1737124265419,-500.0,0.00022739,3]
[349326569,1737124265428,-629.57,0.00022739,3]
[349326570,1737124265438,-500.0,0.00022739,3]
[349326571,1737124265447,-951.9,0.00022739,3]
[349326572,1737124265456,-500.0,0.00022739,3]
[349326573,1737124265465,-500.0,0.00022739,3]
[349326574,1737124265474,-500.0,0.00022739,3]
[349326575,1737124265485,-500.0,0.00022739,3]
[349326576,1737124265495,-1578.16,0.00022739,3]
[349326577,1737124265505,-500.0,0.00022739,3]
[349326578,1737124265519,-612.26,0.00022739,3]
[349326579,1737124265528,-500.0,0.00022739,2]
[349326580,1737124265537,-194.19,0.00022739,3]
[349326581,1737124265547,-500.0,0.00022739,3]
[349326582,1737124265557,-2485.7,0.00022739,3]
[349326583,1737124265567,-500.0,0.00022739,3]
[349326584,1737124265582,-500.0,0.00022739,3]
[349326585,1737124265592,-1838.74,0.00022739,3]
[349326586,1737124265602,-817.28,0.00022739,3]
[349326587,1737124265611,-946.55,0.00022739,3]
[349326588,1737124265620,-500.0,0.00022739,3]
[349326589,1737124265629,-1102.74,0.00022739,3]
[349326590,1737124265639,-500.0,0.00022739,3]
[349326591,1737124265648,-500.0,0.00022739,3]
[349326592,1737124265657,-500.0,0.00022739,3]
[349326593,1737124265668,-500.0,0.00022739,3]
[349326594,1737124265678,-3387.11,0.00022739,3]
[349326595,1737124265688,-11000.29,0.00022739,3]
[349326596,1737124265697,-409.24476659,0.00022757,2]
[349326597,1737124265707,-1571.65,0.00022876,3]
[349326598,1737124265717,-336.28,0.00022876,3]
[349326599,1737124265726,-3116.63,0.00022876,3]
[349326600,1737124265736,-4787.51,0.00022876,3]
[349326601,1737124265745,-500.0,0.00022876,3]
[349326602,1737124265755,-296.96080705,0.00022876,3]
[349326603,1737124265765,-500.0,0.00022876,3]
[349326604,1737124265774,-500.0,0.00022876,3]
[349326605,1737124265785,-500.0,0.00022876,3]
[349326606,1737124265794,-500.0,0.00022876,3]
[349326607,1737124265804,-500.0,0.00022876,3]
[349326608,1737124265813,-500.0,0.00022876,3]
[349326609,1737124265828,-291.58,0.00022876,3]
[349326610,1737124265837,-500.0,0.00022876,3]
[349326611,1737124265847,-500.0,0.00022876,3]
[349326612,1737124265857,-500.0,0.00022876,3]
[349326613,1737124265867,-500.0,0.00022876,3]
[349326614,1737124265876,-500.0,0.00022876,3]
[349326615,1737124265886,-500.0,0.00022876,3]
[349326616,1737124265895,-500.0,0.00022876,3]
[349326617,1737124265905,-500.0,0.00022876,3]
[349326618,1737124265914,-500.0,0.00022876,3]
[349326619,1737124265924,-533.55,0.00022876,3]
[349326620,1737124265933,-500.0,0.00022876,3]
[349326621,1737124265943,-500.0,0.00022876,3]
[349326622,1737124265952,-500.0,0.00022876,3]
[349326623,1737124265962,-500.0,0.00022876,3]
[349326624,1737124265971,-1123.5,0.00022876,3]
[349326625,1737124265980,-504.28223705,0.00022876,3]
[349326626,1737124265990,-510.51,0.00022876,3]
[349326627,1737124265999,-500.0,0.00022876,3]
[349326628,1737124266009,-500.0,0.00022876,3]
[349326629,1737124266018,-500.0,0.00022876,3]
[349326630,1737124266028,-286.77,0.00022876,3]
[349326631,1737124266037,-500.0,0.00022876,3]
[349326632,1737124266047,-500.0,0.00022876,3]
[349326633,1737124266056,-500.0,0.00022876,3]
[349326634,1737124266066,-500.0,0.00022876,3]
[349326635,1737124266086,-500.0,0.00022876,3]
[349326636,1737124266095,-500.0,0.00022876,3]
[349326637,1737124266105,-500.0,0.00022876,3]
[349326638,1737124266115,-163.26452603,0.00022876,3]
[349326639,1737124266125,-1722.86,0.00022876,3]
[349326640,1737124266135,-238.49,0.00022876,3]
[349326641,1737124266144,-629.57,0.00022876,3]
[349326642,1737124266154,-951.9,0.00022876,3]
[349326643,1737124266163,-500.0,0.00022876,3]
[349326644,1737124266173,-500.0,0.00022876,3]
[349326645,1737124266182,-500.0,0.00022876,3]
[349326646,1737124266192,-500.0,0.00022876,3]
[349326647,1737124266202,-1578.16,0.00022876,3]
[349326648,1737124266211,-500.0,0.00022876,3]
[349326649,1737124266221,-612.26,0.00022876,3]
[349326650,1737124266230,-500.0,0.00022876,2]
[349326651,1737124266240,-255.3392049,0.00022876,3]
[349326652,1737124266250,-2485.7,0.00022876,3]
[349326653,1737124266259,-500.0,0.00022876,3]
[349326654,1737124266269,-500.0,0.00022876,3]
[349326655,1737124266279,-899.6093368,0.00022876,3]
[349326656,1737124266559,-500.0,0.00021917,3]
[349326657,1737124266569,-151.0,0.00021917,2]
[349326658,1737124266585,-151.0,0.00021917,2]
[349326659,1737124266595,-151.0,0.00021917,2]
[349326660,1737124266605,-151.0,0.00021917,2]
[349326661,1737124266615,-151.0,0.00022,7]
[349326662,1737124266625,-500.0,0.00022054,3]
[349326663,1737124266635,-500.0,0.00022054,3]
[349326664,1737124266644,-500.0,0.00022191,3]
[349326665,1737124266654,-500.0,0.00022191,3]
[349326666,1737124266663,-252.43,0.00022191,3]
[349326667,1737124266674,-321.46649436,0.00022328,3]
[349326668,1737124266684,-57.91523117,0.00022328,3]
[349326669,1737124266697,-93.48616833,0.00022328,3]
[349326670,1737124266706,-500.0,0.00022465,3]
[349326671,1737124266717,-500.0,0.00022602,3]
[349326672,1737124266727,-500.0,0.00022739,3]
[349326673,1737124266737,-8237.2620859,0.00022797,3]
[349326674,1737124266747,-8237.2620859,0.00022866,3]
[349326675,1737124266757,-939.1306632,0.00022876,3]
[349326676,1737124266767,-817.28,0.00022876,3]
[349326677,1737124266776,-946.55,0.00022876,3]
[349326678,1737124266786,-500.0,0.00022876,3]
[349326679,1737124266795,-1102.74,0.00022876,3]
[349326680,1737124266804,-500.0,0.00022876,3]
[349326681,1737124266814,-500.0,0.00022876,3]
[349326682,1737124266825,-500.0,0.00022876,3]
[349326683,1737124266835,-500.0,0.00022876,3]
[349326684,1737124266844,-3387.11,0.00022876,3]
[349326685,1737124266854,-11000.29,0.00022876,3]
[349326686,1737124266863,-500.0,0.00022876,3]
[349326687,1737124266873,-1112.9716496,0.0002288,2]
[349326688,1737124266882,-409.24476659,0.00022923,2]
[349326689,1737124266892,-8237.2620859,0.00022934,3]
[349326690,1737124266901,-195.97462127,0.00022979,2]
[349326691,1737124266911,-5000.0,0.00022986,2]
[349326692,1737124266920,-7438.69753278,0.00023,2]
[349326693,1737124266929,-27348.96078124,0.00023,10]
[349326694,1737124266938,-2000.0,0.00023,7]
[349326695,1737124266948,-300.0,0.00023,3]
[349326696,1737124266957,-7438.69753278,0.00023,3]
[349326697,1737124266967,-586.0,0.00023,2]
[349326698,1737124266976,-8237.2620859,0.00023003,3]
[349326699,1737124266985,-500.0,0.00023013,2]
[349326700,1737124266994,-275.41620142,0.00023013,2]
[349326701,1737124267004,-297.28960754,0.00023013,2]
[349326702,1737124267014,-251.81323618,0.00023013,2]
[349326703,1737124267024,-1571.65,0.00023013,3]
[349326704,1737124267033,-3116.63,0.00023013,3]
[349326705,1737124267042,-4787.51,0.00023013,3]
[349326706,1737124267052,-199.25927415,0.00023013,3]
[349326707,1737124267061,-511.06,0.00023013,3]
[349326708,1737124267074,-374.62755424,0.00023013,3]
[349326709,1737124267083,-500.0,0.00023013,3]
[349326710,1737124267092,-500.0,0.00023013,3]
[349326711,1737124267101,-500.0,0.00023013,3]
[349326712,1737124267111,-500.0,0.00023013,3]
[349326713,1737124267214,-500.0,0.00023013,3]
[349326714,1737124267223,-500.0,0.00023013,3]
[349326715,1737124267233,-571.81,0.00023013,3]
[349326716,1737124267242,-489.98121912,0.00023013,3]
[349326717,1737124267251,-500.0,0.00023013,3]
[349326718,1737124267262,-500.0,0.00023013,3]
[349326719,1737124267275,-213.35,0.00023013,3]
[349326720,1737124267284,-154.87,0.00023013,3]
[349326721,1737124267294,-618.08,0.00023013,3]
[349326722,1737124267303,-610.69,0.00023013,3]
[349326723,1737124267312,-1123.5,0.00023013,3]
[349326724,1737124267324,-510.51,0.00023013,3]
[349326725,1737124267333,-500.0,0.00023013,3]
[349326726,1737124267343,-500.0,0.00023013,3]
[349326727,1737124267352,-500.0,0.00023013,3]
[349326728,1737124267361,-190.17,0.00023013,3]
[349326729,1737124267370,-500.0,0.00023013,3]
[349326730,1737124267379,-500.0,0.00023013,3]
[349326731,1737124267389,-500.0,0.00023013,3]
[349326732,1737124267398,-500.0,0.00023013,3]
[349326733,1737124267408,-500.0,0.00023013,3]
[349326734,1737124267418,-1722.86,0.00023013,3]
[349326735,1737124267427,-629.57,0.00023013,3]
[349326736,1737124267437,-951.9,0.00023013,3]
[349326737,1737124267446,-500.0,0.00023013,3]
[349326738,1737124267455,-500.0,0.00023013,3]
[349326739,1737124267464,-500.0,0.00023013,3]
[349326740,1737124267473,-500.0,0.00023013,3]
[349326741,1737124267483,-1578.16,0.00023013,3]
[349326742,1737124267492,-545.38,0.00023013,3]
[349326743,1737124267501,-612.26,0.00023013,3]
[349326744,1737124267514,-500.0,0.00023013,2]
[349326745,1737124267523,-2485.7,0.00023013,3]
[349326746,1737124267532,-500.0,0.00023013,3]
[349326747,1737124267541,-500.0,0.00023013,3]
[349326748,1737124267551,-1838.74,0.00023013,3]
[349326749,1737124267561,-817.28,0.00023013,3]
[349326750,1737124267570,-946.55,0.00023013,3]
[349326751,1737124267583,-500.0,0.00023013,3]
[349326752,1737124267592,-1102.74,0.00023013,3]
[349326753,1737124267601,-599.03,0.00023013,3]
[349326754,1737124267610,-213.24,0.00023013,3]
[349326755,1737124267620,-500.0,0.00023013,3]
[349326756,1737124267630,-500.0,0.00023013,3]
[349326757,1737124267639,-3387.11,0.00023013,3]
[349326758,1737124267648,-11000.29,0.00023013,3]
[349326759,1737124267658,-500.0,0.00023013,3]
[349326760,1737124267668,-8237.2620859,0.00023072,3]
[349326761,1737124267678,-409.24476659,0.0002309,2]
[349326762,1737124267687,-4277.5,0.000231,14]
[349326763,1737124267696,-1613.14,0.000231,14]
[349326764,1737124267705,-7600.05,0.000231,2]
[349326765,1737124267714,-774312.39399559,0.000231,2]
[349326768,1737124936070,160.653358,0.00013973,2]
[349326839,1737125432342,-315.7484873,0.00018711,2]
[349326842,1737125432360,-315.7484873,0.000189,2]
[349326844,1737125432374,-951.04740011,0.00020043,2]
[349326846,1737125432384,-189.083309,0.00020427,2]
[349326849,1737125432394,-761.89262781,0.00020446,2]
[349326860,1737125432492,-5791.29517847,0.00020446,2]
[349326863,1737125432504,-721.49321262,0.00020446,2]
[349326865,1737125432514,-154.03,0.00021722,2]
[349326867,1737125432523,-179.548681,0.00021722,2]
[349326869,1737125432533,-300.0,0.00021798,2]
[349326871,1737125432543,-301.211,0.00021799,2]
[349326874,1737125432554,-3098.321038,0.00021817,3]
[349326876,1737125432563,-174.11313372,0.00021817,2]
[349326878,1737125432572,-195.97462127,0.00021817,2]
[349326880,1737125432582,-1026.14,0.000219,2]
[349326882,1737125432592,-300.0,0.000219,9]
[349326884,1737125432601,-222.66476929,0.00021916,2]
[349326886,1737125432614,-500.0,0.00021916,2]
[349326888,1737125432624,-219.9,0.00021916,2]
[349326890,1737125432634,-500.0,0.00021916,2]
[349326892,1737125432643,-420.30299715,0.00021916,2]
[349326894,1737125432652,-500.0,0.00021916,2]
[349326896,1737125432662,-500.0,0.00021916,2]
[349326898,1737125432671,-500.0,0.00021916,2]
[349326900,1737125432682,-500.0,0.00021916,2]
[349326902,1737125432692,-500.0,0.00021916,2]
[349326904,1737125432702,-500.0,0.00021916,2]
[349326906,1737125432711,-416.96199638,0.00021916,2]
[349326908,1737125432721,-500.0,0.00021916,2]
[349326910,1737125432731,-274.65764024,0.00021916,2]
[349326912,1737125432741,-500.0,0.00021916,2]
[349326914,1737125432751,-500.0,0.00021916,2]
[349326916,1737125432761,-500.0,0.00021916,2]
[349326919,1737125432772,-500.0,0.00021916,2]
[349326921,1737125432782,-500.0,0.00021916,2]
[349326923,1737125432792,-215.24153124,0.00021916,2]
[349326925,1737125432802,-500.0,0.00021916,2]
[349326927,1737125432811,-240.61504088,0.00021916,2]
[349326929,1737125432821,-500.0,0.00021916,2]
[349326930,1737125432832,-500.0,0.00021916,2]
[349326932,1737125432842,-500.0,0.00021916,2]
[349326934,1737125432851,-500.0,0.00021916,2]
[349326936,1737125432865,-500.0,0.00021916,2]
[349326937,1737125432875,-500.0,0.00021916,2]
[349326939,1737125432885,-500.0,0.00021916,2]
[349326941,1737125432894,-500.93431472,0.00021917,3]
[349326943,1737125432905,-500.0,0.00021917,3]
[349326945,1737125432914,-500.0,0.00021917,3]
[349326947,1737125432923,-500.0,0.00021917,3]
[349326949,1737125432932,-500.0,0.00021917,3]
[349326951,1737125432942,-500.0,0.00021917,3]
[349326953,1737125432952,-500.0,0.00021917,3]
[349326955,1737125432962,-500.0,0.00021917,3]
[349326957,1737125432971,-500.0,0.00021917,3]
[349326959,1737125432980,-500.0,0.00021917,3]
[349326961,1737125432991,-500.0,0.00021917,3]
[349326963,1737125433000,-500.0,0.00021917,3]
[349326965,1737125433009,-500.48139971,0.00021917,3]
[349326967,1737125433019,-500.0,0.00021917,3]
[349326970,1737125433028,-500.0,0.00021917,3]
[349326971,1737125433038,-500.0,0.00021917,3]
[349326973,1737125433049,-267.30106006,0.00021917,3]
[349326976,1737125433059,-500.0,0.00021917,3]
[349326978,1737125433068,-500.0,0.00021917,3]
[349326979,1737125433078,-500.78599156,0.00021917,3]
[349326982,1737125433087,-500.0,0.00021917,3]
[349326984,1737125433097,-500.0,0.00021917,3]
[349326986,1737125433106,-614.39482546,0.00021917,3]
[349326988,1737125433120,-500.0,0.00021917,3]
[349326990,1737125433129,-500.0,0.00021917,2]
[349326992,1737125433139,-500.0,0.00021917,2]
[349326994,1737125433149,-502.05866215,0.00021917,2]
[349326996,1737125433160,-500.0,0.00021917,3]
[349326997,1737125433170,-500.0,0.00021917,3]
[349326999,1737125433180,-500.0,0.00021917,3]
[349327001,1737125433190,-500.0,0.00021917,3]
[349327018,1737125433335,-500.0,0.00021917,3]
[349327020,1737125433346,-500.0,0.00021917,3]
[349327022,1737125433355,-500.0,0.00021917,3]
[349327024,1737125433368,-500.0,0.00021917,3]
[349327026,1737125433377,-500.0,0.00021917,3]
[349327028,1737125433386,-644.24592478,0.00021917,3]
[349327030,1737125433395,-520.19320106,0.00021917,3]
[349327031,1737125433405,-500.00000001,0.00021917,3]
[349327033,1737125433414,-500.0,0.00021917,3]
[349327035,1737125433423,-500.0,0.00021917,3]
[349327037,1737125433433,-500.51000536,0.00021917,3]
[349327038,1737125433444,-500.0,0.00021917,3]
[349327039,1737125433455,-500.0,0.00021917,3]
[349327040,1737125433465,-500.0,0.00021917,3]
[349327041,1737125433475,-212.58890195,0.00021917,3]
[349327042,1737125433485,-323.02524891,0.00021917,3]
[349327043,1737125433495,-272.16048616,0.00021917,3]
[349327044,1737125433505,-500.56880614,0.00021917,3]
[349327046,1737125433514,-594.89545264,0.00021917,3]
[349327048,1737125433524,-500.0,0.00021917,3]
[349327050,1737125433534,-500.0,0.00021917,3]
[349327052,1737125433544,-500.0,0.00021917,3]
[349327054,1737125433554,-500.0,0.00021917,3]
[349327056,1737125433563,-500.0,0.00021917,3]
[349327058,1737125433573,-500.0,0.00021917,3]
[349327060,1737125433583,-500.0,0.00021917,3]
[349327062,1737125433592,-501.39972131,0.00021917,3]
[349327063,1737125433602,-500.0,0.00021917,3]
[349327064,1737125433611,-500.0,0.00021917,3]
[349327065,1737125433623,-500.0,0.00021917,3]
[349327066,1737125433633,-500.0,0.00021917,3]
[349327067,1737125433643,-500.0,0.00021917,3]
[349327068,1737125433652,-500.0,0.00021917,3]
[349327069,1737125433662,-500.0,0.00021917,3]
[349327070,1737125433672,-500.0,0.00021917,3]
[349327071,1737125433681,-423.2648378,0.00021917,3]
[349327072,1737125433691,-428.74261144,0.00021917,3]
[349327073,1737125433700,-500.0,0.00021917,3]
[349327074,1737125433713,-500.0,0.00021917,3]
[349327075,1737125433724,-500.0,0.00021917,3]
[349327076,1737125433734,-500.74344555,0.00021917,3]
[349327077,1737125433744,-500.0,0.00021917,3]
[349327078,1737125433753,-500.0,0.00021917,3]
[349327079,1737125433763,-500.0,0.00021917,3]
[349327080,1737125433772,-500.80498737,0.00021917,3]
[349327081,1737125433781,-500.0,0.00021917,3]
[349327082,1737125433791,-500.0,0.00021917,3]
[349327083,1737125433800,-364.3120323,0.00021917,3]
[349327084,1737125433816,-135.6879677,0.00021917,3]
[349327086,1737125433829,-500.0,0.00021917,3]
[349327088,1737125433838,-165.61873205,0.00021917,3]
[349327090,1737125433848,-500.0,0.00021917,3]
[349327092,1737125433859,-500.0,0.00021917,3]
[349327094,1737125433872,-500.0,0.00021917,3]
[349327096,1737125433882,-214.97190757,0.00021917,3]
[349327098,1737125433891,-500.0,0.00021917,3]
[349327100,1737125433906,-500.64756074,0.00021917,3]
[349327102,1737125433915,-500.0,0.00021917,3]
[349327104,1737125433925,-500.0,0.00021917,3]
[349327106,1737125433935,-500.0,0.00021917,3]
[349327108,1737125433944,-500.0,0.00021917,3]
[349327110,1737125433954,-500.0,0.00021917,3]
[349327112,1737125433964,-500.0,0.00021917,3]
[349327114,1737125433974,-230.969,0.00021917,2]
[349327116,1737125433982,-500.0,0.00021917,3]
[349327118,1737125433993,-500.0,0.00021917,3]
[349327120,1737125434002,-506.73492457,0.00021917,3]
[349327122,1737125434012,-500.0,0.00021917,3]
[349327124,1737125434021,-500.0,0.00021917,3]
[349327126,1737125434031,-500.0,0.00021917,3]
[349327129,1737125434040,-310.98797265,0.00021917,3]
[349327131,1737125434052,-582.03697259,0.00021917,3]
[349327133,1737125434062,-500.0,0.00021917,3]
[349327135,1737125434072,-500.0,0.00021917,3]
[349327137,1737125434081,-500.0,0.00021917,3]
[349327139,1737125434091,-500.0,0.00021917,3]
[349327141,1737125434100,-500.0,0.00021917,3]
[349327143,1737125434110,-500.0,0.00021917,3]
[349327145,1737125434122,-500.74306221,0.00021917,3]
[349327147,1737125434132,-500.0,0.00021917,3]
[349327149,1737125434142,-500.0,0.00021917,3]
[349327151,1737125434152,-500.0,0.00021917,3]
[349327153,1737125434162,-500.0,0.00021917,3]
[349327156,1737125434174,-500.0,0.00021917,3]
[349327158,1737125434183,-500.0,0.00021917,3]